[Event "SixDays Budapest January IM-A 2025"]
[Site "Budapest"]
[Date "2025.01.27"]
[Round "3.4"]
[White "Chubakov, Sultan"]
[Black "Mauron, Pierre"]
[Result "1/2-1/2"]
[Annotator "TA"]
[ECO "A28"]
[WhiteElo "2237"]
[BlackElo "2016"]
[PlyCount "73"]
[EventDate "2025.01.24"]
[EventType "tourn"]
[EventCountry "HUN"]
[SourceTitle "playchess.com"]
[Source "ChessBase"]
[SourceQuality "1"]
[TimeControl "5400+30"]

{[%evp 13,73,12,8,10,9,0,51,26,31,-16,0,0,0,-8,16,8,15,19,19,22,50,54,56,39,54,62,72,64,64,11,20,18,24,26,11,6,0,2,15,11,47,49,51,43,53,43,47,30,14,17,25,16,20,24,20,12,9,0,33,18,28,-51]} 1. c4 {[%emt 0:00:09]} e5 {[%emt 0:00:05]} 2. Nc3 {[%emt 0:00:08]} Nf6 {[%emt 0:00:15]} 3. Nf3 {[%emt 0:01:35]} Nc6 {[%emt 0:00:03]} 4. a3 {[%emt 0:02:37]} d5 {[%emt 0:02:15]} 5. cxd5 {[%emt 0:00:39]} Nxd5 {[%emt 0:00:13]} 6. Qc2 {[%emt 0:04:55]} Be7 {[%emt 0:01:44]} 7. e3 {[%emt 0:01:36]} O-O {[%emt 0:00:48]} 8. Nxd5 {[%emt 0:08:01] A28: English Opening: Four Knights Variation.} Qxd5 {[%emt 0:00:20]} 9. Bd3 {[%emt 0:03:44]} h6 {[%emt 0:04:00]} (9... Kh8 $11) 10. Be4 {[%emt 0:05:59] White is slightly better.} Qd6 {[%emt 0:01:46]} 11. Qc3 {[%emt 0:02:24]} (11. b4 $14 {feels stronger.}) 11... Bf6 $146 {[%emt 0:02:37]} (11... Bd7 12. Bxc6 Bxc6 13. Qxe5 Qxe5 14. Nxe5 Bxg2 15. Rg1 Bd5 16. d3 Kh7 17. e4 Bd6 {0-1 Menon,G (1821)-Starosta,M (2208) Wch U18 Girls 2023 (7)}) 12. O-O {[%emt 0:06:33]} Bg4 {[%emt 0:02:21]} 13. Qc2 {[%emt 0:02:11]} Rad8 {[%emt 0:05:52]} 14. b4 {[%emt 0:11:16]} Rfe8 {[%emt 0:03:36]} 15. Rb1 {[%emt 0:03:59]} Ne7 {[%emt 0:03:57][%cal Bc6e7,Be7d5,Bd5b6][%mdl 32]} 16. b5 {[%emt 0:05:14]} c6 {[%emt 0:00:57]} 17. bxc6 {[%emt 0:00:46]} bxc6 {[%emt 0:00:56]} 18. Qa4 {[%emt 0:04:29]} Qd7 {[%emt 0:02:20]} 19. Bb2 {[%emt 0:03:50]} Nd5 {[%emt 0:03:00]} 20. Rfc1 {[%emt 0:01:41]} Rc8 {[%emt 0:01:29]} 21. Ne1 {[%emt 0:03:47]} (21. h3 $14 Bxf3 22. Bxf3) 21... Nb6 $11 {[%emt 0:04:36][%csl LRa4,LRd2]} 22. Qc2 {[%emt 0:06:03][%cal Oe1d3]} c5 {[%emt 0:01:28]} 23. h3 {[%emt 0:03:31]} Be6 {[%emt 0:02:30]} 24. Nf3 {[%emt 0:01:06]} Nc4 {[%emt 0:04:43]} 25. d3 {[%emt 0:02:55][%cal Bd2d3,Bd3e4][%mdl 32]} Nxb2 {[%emt 0:02:47]} 26. Qxb2 {[%emt 0:00:37]} Bd5 {[%emt 0:01:41]} 27. Qb5 {[%emt 0:01:45]} Qxb5 {[%emt 0:02:53]} 28. Rxb5 {[%emt 0:00:10]} Bxe4 {[%emt 0:00:55]} 29. dxe4 {[%emt 0:00:03]} c4 {[%emt 0:00:59]} 30. Rb4 {[%emt 0:06:57]} c3 {[%emt 0:02:48]} 31. Rb3 {[%emt 0:01:21]} c2 {[%emt 0:01:24] [#] and ...Red8 would now be decisive} 32. Ne1 {[%emt 0:01:22]} Rc4 {[%emt 0:03:13]} 33. Rxc2 {[%emt 0:03:41]} ({Not} 33. Nxc2 Be7 34. Rd3 Rec8 $17) 33... Rxe4 {[%emt 0:00:36]} 34. Rc7 {[%emt 0:01:14]} Ra4 {[%emt 0:01:14]} 35. Nc2 {[%emt 0:00:36]} Rd8 {[%emt 0:03:22]} 36. Kf1 {[%emt 0:00:51]} Ra5 {[%emt 0:05:59]} 37. Rbc3 {[%emt 0:00:39] Weighted Error Value: White=0.08 (flawless) /Black=0.11 (very precise)   Mistake:       	White=3     	Black=1      Inaccurate:     	---       	Black=3      OK:         	White=14    	Black=11     Best:        	---       	Black=1} (37. e4 $11) 1/2-1/2

[Event "SixDays Budapest January IM-A 2025"]
[Site "Budapest"]
[Date "2025.01.27"]
[Round "3.5"]
[White "Papp, Levente"]
[Black "Kiremitciyan, Ari"]
[Result "1/2-1/2"]
[Annotator "TA"]
[ECO "A15"]
[WhiteElo "2386"]
[BlackElo "2251"]
[PlyCount "28"]
[EventDate "2025.01.24"]
[EventType "tourn"]
[EventCountry "HUN"]
[SourceTitle "playchess.com"]
[Source "ChessBase"]
[SourceQuality "1"]
[TimeControl "5400+30"]

{[%evp 9,28,2,17,1,13,5,32,35,29,26,28,24,54,51,60,64,74,64,91,81,141]} 1. c4 {[%emt 0:11:50]} Nf6 {[%emt 0:00:18]} 2. g3 {[%emt 0:00:45]} e6 {[%emt 0:00:26]} 3. Bg2 {[%emt 0:00:08]} d5 {[%emt 0:00:09]} 4. Nf3 {[%emt 0:00:05]} d4 {[%emt 0:00:17]} 5. d3 {[%emt 0:00:40]} Bb4+ {[%emt 0:00:48]} 6. Nbd2 {[%emt 0:08:09] White wants to play Qa4+. A13: English Opening: 1...e6.} a5 {[%emt 0:00:34]} 7. Ne5 {[%emt 0:04:51] Wards off Nc6} Qd6 {[%emt 0:09:17]} 8. f4 {[%emt 0:01:12] White is slightly better.} Nbd7 {[%emt 0:04:01]} 9. Nxd7 $146 {[%emt 0:03:06]} (9. Nef3 a4 10. O-O a3 11. bxa3 Bxa3 12. Nb3 c5 13. Bd2 O-O 14. Rb1 e5 15. fxe5 Nxe5 {½-½ Chigaev,M (2621)-Deac,B (2690) ROM GP Final GpD rapid 2023 (2)}) 9... Nxd7 {[%emt 0:03:42]} 10. O-O {[%emt 0:00:42]} Bxd2 {[%emt 0:01:28]} 11. Bxd2 {[%emt 0:08:04]} Nc5 {[%emt 0:06:44]} 12. b4 {[%emt 0:15:10]} axb4 {[%emt 0:00:13]} 13. Bxb4 {[%emt 0:00:05]} Ra7 {[%emt 0:03:59]} 14. a4 {[%emt 0:06:51]} b6 {[%emt 0:01:32] Weighted Error Value: White=0.02 (flawless) /Black=0.14 (very precise)   Mistake:       	---       	Black=1      Inaccurate:     	---       	Black=3      OK:         	White=4     	Black=2      Best:        	White=1     	---} (14... O-O $142) 1/2-1/2

[Event "SixDays Budapest January IM-A 2025"]
[Site "Budapest"]
[Date "2025.01.28"]
[Round "4.1"]
[White "Karacsonyi, Kata"]
[Black "Kiremitciyan, Ari"]
[Result "1/2-1/2"]
[Annotator "TA"]
[ECO "C65"]
[WhiteElo "2183"]
[BlackElo "2251"]
[PlyCount "139"]
[EventDate "2025.01.24"]
[EventType "tourn"]
[EventCountry "HUN"]
[SourceTitle "playchess.com"]
[Source "ChessBase"]
[SourceQuality "1"]
[TimeControl "5400+30"]

{[%evp 9,139,20,28,26,31,14,16,17,24,18,20,11,10,4,19,11,20,2,5,11,10,0,10,0,0,-16,-12,-9,-20,-8,-5,-2,0,0,0,0,0,0,7,0,8,-18,-17,-31,-22,-80,-78,-76,-63,-108,-68,-72,-74,-120,-120,-121,-124,-116,-120,-163,-89,-186,-214,-229,-229,-230,-205,-220,-212,-213,-202,-189,-204,-200,-191,-250,-162,-12784,-12777,-12769,-12395,-12769,-11074,-6123,-127,-127,-127,-126,-10,-127,-8,-8,-8,-8,-8,-8,-8,-8,-8,-192,-8,-192,-192,-192,-192,-192,-192,-192,-192,-192,-192,-192,-192,-192,-121,-192,-192,-192,-121,-121,-121,-121,-121,-121,-121,-121,-121,-121,-121,-121,-8,-8]} 1. e4 {[%emt 0:00:04]} e5 {[%emt 0:00:43]} 2. Nf3 {[%emt 0:00:07]} Nc6 {[%emt 0:00:06]} 3. Bb5 {[%emt 0:00:13][%cal Bf1b5,Bb5a4,Ba4b3][%mdl 32]} Nf6 {[%emt 0:01:00]} 4. d3 {[%emt 0:00:14]} Bd6 {[%emt 0:08:17]} 5. O-O {[%emt 0:02:50]} a6 {[%emt 0:01:02]} 6. Ba4 {[%emt 0:03:54] C65: Ruy Lopez: Berlin Defence (3...Nf6), unusual lines and 4 0-0 Bc5.} O-O $1 {[%emt 0:00:48] 6...0-0 is better than 6...b5.} 7. Bg5 {[%emt 0:03:09]} h6 {[%emt 0:00:40]} 8. Bh4 {[%emt 0:00:08]} b5 {[%emt 0:01:34]} 9. Bb3 {[%emt 0:00:06]} Be7 {[%emt 0:00:39]} 10. c3 {[%emt 0:10:13]} d6 {[%emt 0:00:15]} 11. a4 {[%emt 0:06:13] And now axb5 would win.} Rb8 {[%emt 0:01:58]} 12. axb5 {[%emt 0:03:29]} axb5 {[%emt 0:00:13]} 13. Nbd2 {[%emt 0:05:14]} Nh5 {[%emt 0:02:21]} 14. Bg3 {[%emt 0:19:43]} Nxg3 {[%emt 0:01:09]} 15. hxg3 {[%emt 0:01:02]} Bf6 {[%emt 0:02:09]} 16. Nh2 $146 {[%emt 0:02:50]} (16. Re1 g6 17. Nf1 Bd7 18. Ne3 Bg7 19. d4 b4 20. Ba4 bxc3 21. bxc3 exd4 22. cxd4 {½-½ Hinks Edwards,T (2343)-Govciyan,P (2368) FRA-chT Top 16 GpA 2006 (3)}) 16... g6 {[%emt 0:12:03]} 17. f4 {[%emt 0:01:08]} exf4 {[%emt 0:18:43]} 18. gxf4 {[%emt 0:00:36]} b4 {[%emt 0:00:48]} 19. d4 {[%emt 0:18:25]} bxc3 {[%emt 0:00:08]} 20. bxc3 {[%emt 0:00:04] [#]} Nxd4 $1 {[%emt 0:01:07]} 21. cxd4 {[%emt 0:00:04]} Bxd4+ {[%emt 0:00:09] A strong pair of Bishops.} 22. Kh1 {[%emt 0:00:05]} Bxa1 {[%emt 0:00:16]} 23. Qxa1 {[%emt 0:00:04]} Be6 $132 {[%emt 0:00:56][%mdl 2048] Black is not holding back} 24. Bc2 {[%emt 0:00:35] Threatening f5.} f5 {[%emt 0:01:44]} 25. Ndf3 {[%emt 0:06:33]} fxe4 {[%emt 0:04:27]} 26. Bxe4 {[%emt 0:04:51]} Qf6 {[%emt 0:03:18]} (26... Rxf4 27. Re1 Qd7 28. Bxg6 Bd5) 27. Qxf6 {[%emt 0:05:23]} (27. Nd4 Bc4 28. Rc1 Qxf4 $15) (27. Qc1 $11) 27... Rxf6 $17 {[%emt 0:00:04]} 28. Nd4 {[%emt 0:01:12]} Bd7 {[%emt 0:01:15]} 29. f5 {[%emt 0:01:47]} gxf5 {[%emt 0:03:35]} 30. Ng4 {[%emt 0:00:17]} Rg6 {[%emt 0:01:41]} (30... fxg4 $6 31. Rxf6 Rb4 32. Bd5+ Kg7 33. Rf7+ Kg6 34. Ne2 $16 (34. Rxd7 Rxd4 35. Bb3 c5 $14)) 31. Nxf5 {[%emt 0:04:19]} (31. Bd5+ $142 Kh8 32. Ne3) 31... Rxg4 {[%emt 0:00:29]} 32. Nxh6+ {[%emt 0:00:05]} Kg7 {[%emt 0:00:39]} 33. Nxg4 {[%emt 0:00:03]} Bxg4 {[%emt 0:00:06][%mdl 4096] Endgame KRB-KRB. Black is a pawn up.} 34. Bd5 {[%emt 0:01:03]} Rf8 {[%emt 0:00:47] Inhibits Rf7+.} (34... Rb5 $19 35. Bc6 Rf5) 35. Rc1 {[%emt 0:00:32]} (35. Rxf8 $17 Kxf8 36. Kh2) 35... c5 $19 {[%emt 0:00:22]} 36. Rc4 {[%emt 0:01:17]} Bd7 {[%emt 0:01:19]} 37. Kh2 {[%emt 0:00:26]} Rf5 {[%emt 0:01:41]} 38. Bf3 {[%emt 0:00:36]} Bb5 {[%emt 0:00:56]} 39. Rc3 {[%emt 0:00:09]} Kf6 {[%emt 0:01:22]} 40. g4 {[%emt 0:00:13]} Rf4 {[%emt 0:01:26]} 41. Kg3 {[%emt 0:00:10]} Rd4 {[%emt 0:00:19]} 42. Kf2 {[%emt 0:01:27]} (42. Rc1 {was worth a try.}) 42... Rd3 {[%emt 0:02:06]} 43. Rxd3 {[%emt 0:00:33]} (43. Rc1) 43... Bxd3 {[%emt 0:00:01] KB-KB. Black is a pawn up.} 44. Ke3 {[%emt 0:00:07]} Bh7 {[%emt 0:05:47]} 45. Kf4 {[%emt 0:00:06]} Ke6 $1 {[%emt 0:04:18]} 46. g5 {[%emt 0:00:04] [#]} d5 $2 {[%emt 0:00:14]} (46... c4 $1 $19 {[%cal Rc4c3]} 47. Bg4+ Ke7) 47. Bg4+ $17 {[%emt 0:00:25]} Kd6 {[%emt 0:00:04]} 48. Bh5 {[%emt 0:01:15]} d4 {[%emt 0:03:42]} (48... Bb1 $17 49. Bf7 d4) 49. Bf7 {[%emt 0:00:18]} (49. g6 $11 {was the only way to keep the balance.} Bg8 50. Be2) 49... Bc2 {[%emt 0:04:03]} (49... Bb1 $17 50. g6 Ke7) 50. g6 $11 {[%emt 0:01:08]} Ke7 {[%emt 0:00:11]} 51. Ke5 {[%emt 0:00:37]} d3 {[%emt 0:04:20] ( -> ...d2)} (51... Bb1 {simplifies} 52. Kd5 Ba2+ 53. Kxc5 Bxf7 54. Kxd4 Bxg6 55. Kc3 Kf6) 52. Bc4 {[%emt 0:00:04]} (52. Bd5 $5 d2 $8 53. Bf3 $17) 52... d2 {[%emt 0:00:25]} 53. Be2 {[%emt 0:00:11]} Bxg6 {[%emt 0:06:44] White must now prevent ...Bc2.} (53... Bd3 {seems wilder.} 54. Bh5 Kf8 55. Kd5 c4) 54. Kd5 $2 {[%emt 0:01:13]} (54. Bd1 $11 {and White has nothing to worry.}) 54... Kf6 $2 {[%emt 0:00:25]} (54... Bd3 $1 $19 {[%cal Rd3e2]} 55. Bd1 c4) 55. Bd1 {[%emt 0:00:32]} (55. Kc4 $1 $11) 55... Kf5 $19 {[%emt 0:00:21]} 56. Kxc5 {[%emt 0:00:21]} Ke4 {[%emt 0:00:08]} 57. Kc4 {[%emt 0:00:08]} Ke3 {[%emt 0:00:04]} 58. Kc3 {[%emt 0:00:05]} Bd3 {[%emt 0:00:16]} 59. Ba4 {[%emt 0:00:45]} Ke2 {[%emt 0:00:12]} 60. Bb3 {[%emt 0:00:25]} Bb1 {[%emt 0:01:06]} (60... d1=B 61. Bxd1+ $11) 61. Ba4 {[%emt 0:00:19]} Ke1 {[%emt 0:00:20]} (61... d1=R 62. Bxd1+ $11) (61... Be4 $19 62. Kd4 Bg6 (62... d1=B 63. Bxd1+ $11)) 62. Bb3 {[%emt 0:00:07] [#]} (62. Kd4 $17) 62... Ba2 $1 {[%emt 0:00:19] ( -> ...Bxb3)} 63. Ba4 {[%emt 0:00:06] [#]} Be6 {[%emt 0:00:13]} (63... d1=B 64. Bxd1 $11) (63... Ke2 $1 $19 64. Be8 Be6 (64... d1=R 65. Bh5+ Kf2 66. Bxd1 $11) 65. Bh5+ Ke3) 64. Kd3 $17 {[%emt 0:01:44] [#]} Bd7 $1 {[%emt 0:00:16]} 65. Bb3 {[%emt 0:00:06]} Bg4 {[%emt 0:00:39]} (65... d1=B $6 66. Bxd1 $11) 66. Ke3 {[%emt 0:00:12]} Bd1 {[%emt 0:00:11]} (66... d1=B $6 67. Bxd1 $11) 67. Be6 {[%emt 0:00:20]} Be2 {[%emt 0:00:50]} 68. Bb3 {[%emt 0:00:05] [#]} Bc4 $1 {[%emt 0:00:12]} 69. Ba4 {[%emt 0:00:12]} (69. Bc2 Be2) 69... d1=Q {[%emt 0:01:18]} ({But not} 69... d1=R $6 70. Bxd1 $11) ({Black should play} 69... Bf7 $17) 70. Bxd1 {[%emt 0:00:05] Weighted Error Value: White=0.45/Black=0.29 (precise)   Loses game:     	White=2     	---        Missed win:     	---       	Black=1      Mistake:       	White=7     	Black=6      Inaccurate:     	White=3     	Black=2      OK:         	White=19    	Black=28     Best:        	White=10    	Black=2} 1/2-1/2

[Event "SixDays Budapest January IM-A 2025"]
[Site "Budapest"]
[Date "2025.01.28"]
[Round "4.2"]
[White "Mauron, Pierre"]
[Black "Papp, Levente"]
[Result "0-1"]
[Annotator "TA"]
[ECO "C16"]
[WhiteElo "2016"]
[BlackElo "2386"]
[PlyCount "118"]
[EventDate "2025.01.24"]
[EventType "tourn"]
[EventCountry "HUN"]
[SourceTitle "playchess.com"]
[Source "ChessBase"]
[SourceQuality "1"]
[TimeControl "5400+30"]

{[%evp 17,118,25,24,8,16,-22,-21,-25,-25,-39,-39,-122,-135,-122,-131,-161,-166,-171,-168,-169,-170,-172,-152,-162,-118,-154,-134,-117,-139,-138,-119,-123,-120,-189,-90,-158,-151,-193,-191,-183,-76,-71,-68,-84,-82,-71,-42,-31,-37,-51,-27,-27,-37,-70,-41,-202,-150,-132,-110,-116,-132,-118,-98,-116,-87,-83,-83,-86,-70,-263,-257,-266,-268,-241,-257,-549,-536,-453,-422,-351,-250,-949,-742,-1947,-1735,-1918,-564,-8154,-5773,-29963,-29963,-29977,-29977,-29979,-29980,-29981,-29983,-29986,-29987,-29988,-29986,-29986,-29987]} 1. e4 {[%emt 0:00:54]} e6 {[%emt 0:04:05]} 2. d4 {[%emt 0:00:10]} d5 {[%emt 0:00:19]} 3. Nc3 {[%emt 0:00:17]} Bb4 {[%emt 0:00:05]} 4. e5 {[%emt 0:00:28]} Ne7 {[%emt 0:00:07]} 5. a3 {[%emt 0:00:33]} Bxc3+ {[%emt 0:00:08]} 6. bxc3 {[%emt 0:00:02]} b6 {[%emt 0:00:13]} 7. Qg4 {[%emt 0:00:36]} Ng6 {[%emt 0:00:13]} 8. h4 {[%emt 0:00:25]} h5 {[%emt 0:00:05]} 9. Qg3 {[%emt 0:02:10]} Ba6 {[%emt 0:00:11]} 10. Bg5 {[%emt 0:02:21] C16: French: 3 Nc3 Bb4 4 e5: Lines without ...c5.} Qc8 $146 {[%emt 0:04:05]} (10... Qd7 11. Bxa6 Nxa6 12. Ne2 Qa4 13. Qd3 c5 14. O-O cxd4 15. cxd4 Rc8 16. f4 Qc4 17. Qf3 Ne7 18. Bxe7 Kxe7 {1-0 Kuybokarov,T (2530)-Zhao,J (2638) RBI op Qualifier 1 blitz 2020 (7)}) 11. Bxa6 {[%emt 0:06:05]} Qxa6 {[%emt 0:00:51]} 12. Ne2 {[%emt 0:00:50] The position is equal.} c5 {[%emt 0:06:48]} 13. Qf3 {[%emt 0:04:17]} Nc6 {[%emt 0:03:23]} 14. g4 {[%emt 0:07:01]} ({White should try} 14. O-O $15) 14... hxg4 $17 {[%emt 0:02:26]} 15. Qxg4 {[%emt 0:00:22]} Qa4 {[%emt 0:13:20]} 16. Rg1 {[%emt 0:07:47]} Qxc2 {[%emt 0:02:49] Black attacks} (16... cxd4 17. cxd4 Nge7 (17... Qxc2 18. Rc1 $11) 18. c3 $15) 17. Rc1 {[%emt 0:02:33]} Qb2 {[%emt 0:11:39]} 18. Rg3 {[%emt 0:03:24]} (18. h5 Nge7 19. h6 gxh6 (19... Qxa3 20. hxg7 Rg8 21. Bf6 $16)) 18... Nge7 {[%emt 0:02:23]} (18... Qxa3 19. Kf1 $17) 19. Rf3 {[%emt 0:06:16]} Nf5 {[%emt 0:08:57]} (19... Qxa3 20. Bxe7 Nxe7 21. Qxg7 $16) 20. Rd1 {[%emt 0:06:23]} Qc2 {[%emt 0:08:35]} 21. Rd2 {[%emt 0:05:19]} Qe4 {[%emt 0:07:23] Dancing on a razor blade. Black is more active.} 22. Qxe4 {[%emt 0:00:41]} dxe4 {[%emt 0:00:02]} 23. Rf4 {[%emt 0:01:12]} e3 {[%emt 0:00:57]} 24. fxe3 {[%emt 0:00:42]} Nxe3 {[%emt 0:00:14] [#]} 25. Re4 {[%emt 0:02:58]} (25. Ng3 $17 {might work better.}) 25... Nf5 {[%emt 0:08:45] A dynamic duo of knights.} (25... Nc4 $19 {is more deadly.} 26. Rd1 Nxa3 27. dxc5 bxc5) 26. Kf2 {[%emt 0:05:27]} (26. d5 $142 exd5 27. Rxd5) 26... cxd4 {[%emt 0:01:07]} 27. cxd4 {[%emt 0:01:07]} Nce7 {[%emt 0:00:17]} 28. Nf4 {[%emt 0:07:05]} Nd5 {[%emt 0:07:23]} (28... Rd8 $19 {[%cal Od8d7] Threatens to win with ...Rd7!.} 29. a4 Rd7 (29... Nxh4 30. Nxe6 fxe6 31. Rxh4 $17)) 29. Nxd5 {[%emt 0:01:03]} exd5 {[%emt 0:00:01]} 30. Rf4 {[%emt 0:00:57] [#]} g6 {[%emt 0:00:16]} 31. Bf6 {[%emt 0:02:47]} Rh5 {[%emt 0:00:48]} 32. Rc2 {[%emt 0:02:04] Dodges Rc8} Kd7 {[%emt 0:00:10] Inhibits Rc7+.} 33. Ke2 $1 {[%emt 0:01:19]} Rc8 {[%emt 0:04:26]} 34. Rxc8 {[%emt 0:03:04]} Kxc8 $11 {[%emt 0:00:02][%mdl 4096] Endgame KRB-KRN. Black is a pawn up.} 35. Kd3 $1 {[%emt 0:00:24]} Kd7 {[%emt 0:00:04]} 36. Kc2 $2 {[%emt 0:01:25]} (36. Rf2 $15) 36... Ng3 {[%emt 0:01:29]} 37. Bg5 {[%emt 0:01:25]} Rh7 {[%emt 0:00:08]} 38. Rf6 {[%emt 0:01:30]} Ne4 {[%emt 0:01:27] Repels Rd6+} 39. e6+ {[%emt 0:00:41]} fxe6 {[%emt 0:00:02]} 40. Rxg6 {[%emt 0:00:11]} Nxg5 {[%emt 0:01:22]} 41. hxg5 $17 {[%emt 0:00:26] KR-KR. Black is a pawn up.} Rh2+ {[%emt 0:01:05]} 42. Kc3 {[%emt 0:01:56]} Rh3+ {[%emt 0:00:18]} 43. Kb4 $2 {[%emt 0:00:30]} ({Only move:} 43. Kb2 $1 $15) 43... Rd3 $19 {[%emt 0:00:47]} 44. Rg7+ {[%emt 0:02:32]} Kc6 {[%emt 0:00:04] ( -> ...a5+)} 45. Rxa7 {[%emt 0:00:38]} Rxd4+ {[%emt 0:00:05]} 46. Kb3 $2 {[%emt 0:00:08]} (46. Kc3 {was the only defense.} Rc4+ 47. Kd2) 46... Rg4 {[%emt 0:00:22]} 47. Re7 {[%emt 0:00:46]} Kd6 {[%emt 0:00:06]} (47... Rxg5 48. Rxe6+ Kc5 49. Re7 $17) 48. Rb7 {[%emt 0:00:07]} Kc5 {[%emt 0:00:56]} (48... Rxg5 49. Rxb6+ Kd7 50. a4 $17) 49. Rc7+ $2 {[%emt 0:01:28]} (49. Re7) 49... Kd4 {[%emt 0:00:59][%cal Oe6e5]} 50. Rc6 {[%emt 0:00:32]} e5 {[%emt 0:00:18]} ({Not} 50... Rxg5 51. Rxe6 Kc5 52. Re8 $15) 51. g6 {[%emt 0:01:42]} Rg1 {[%emt 0:00:42]} (51... e4 $142 52. Rxb6 Kd3) 52. Kb4 {[%emt 0:00:47]} e4 {[%emt 0:00:11] ( -> ...e3)} 53. Kb5 {[%emt 0:00:23]} e3 {[%emt 0:02:18] Black mates.} 54. Re6 {[%emt 0:00:18]} Kd3 {[%emt 0:00:10]} 55. Kxb6 {[%emt 0:00:32]} e2 {[%emt 0:00:25]} 56. g7 {[%emt 0:03:19]} Rxg7 {[%emt 0:00:08]} ({And not} 56... e1=R 57. Rxe1 Rxg7 58. a4 $11) 57. Kc5 {[%emt 0:00:04]} d4 {[%emt 0:00:15]} 58. a4 {[%emt 0:00:21]} Rg5+ {[%emt 0:00:05]} 59. Kb6 {[%emt 0:00:36]} Rg1 {[%emt 0:00:06] Weighted Error Value: White=0.65/Black=0.28 (precise)   Loses game:     	White=2     	---        Mistake:       	White=5     	Black=2      Inaccurate:     	White=4     	Black=2      OK:         	White=16    	Black=16     Best:        	White=2     	Black=4      Strong:       	White=2     	---} 0-1

[Event "SixDays Budapest January IM-A 2025"]
[Site "Budapest"]
[Date "2025.01.28"]
[Round "4.3"]
[White "Golubovskis, Maksims"]
[Black "Chubakov, Sultan"]
[Result "1/2-1/2"]
[Annotator "TA"]
[ECO "B41"]
[WhiteElo "2237"]
[BlackElo "2237"]
[PlyCount "51"]
[EventDate "2025.01.24"]
[EventType "tourn"]
[EventCountry "HUN"]
[SourceTitle "playchess.com"]
[Source "ChessBase"]
[SourceQuality "1"]
[TimeControl "5400+30"]

{[%evp 14,51,45,46,55,49,66,62,64,56,58,60,61,46,58,64,70,53,39,25,33,20,26,22,32,29,39,43,43,41,40,0,33,-66,-69,-66,-59,-56,-37,-45]} 1. e4 {[%emt 0:04:02]} c5 {[%emt 0:00:04]} 2. Nf3 {[%emt 0:00:16]} e6 {[%emt 0:00:04]} 3. d4 {[%emt 0:00:32]} cxd4 {[%emt 0:00:04]} 4. Nxd4 {[%emt 0:00:10]} a6 {[%emt 0:00:01]} 5. c4 {[%emt 0:00:30]} Nf6 {[%emt 0:00:04]} 6. Nc3 {[%emt 0:00:15]} Qc7 {[%emt 0:00:04]} 7. a3 {[%emt 0:01:38]} b6 {[%emt 0:00:08]} 8. Be3 {[%emt 0:02:19]} Bb7 {[%emt 0:00:19]} 9. f3 {[%emt 0:00:27]} Nc6 {[%emt 0:01:35]} 10. Be2 {[%emt 0:00:34]} Rc8 {[%emt 0:09:58] White is slightly better.} 11. Rc1 {[%emt 0:16:17]} Nxd4 {[%emt 0:06:45]} 12. Qxd4 Bc5 {[%emt 0:01:36]} 13. Qd2 {[%emt 0:00:20]} Bxe3 {[%emt 0:16:09]} 14. Qxe3 {[%emt 0:02:15]} Qc5 {[%emt 0:00:48]} 15. Qxc5 {[%emt 0:11:45]} bxc5 {[%emt 0:01:07]} 16. Kf2 {[%emt 0:06:16]} d6 {[%emt 0:01:17]} 17. Rhd1 {[%emt 0:00:55]} Ke7 {[%emt 0:01:13]} 18. Rd2 {[%emt 0:01:09]} Rhd8 {[%emt 0:02:10]} 19. b4 {[%emt 0:06:50]} cxb4 {[%emt 0:06:04]} 20. axb4 {[%emt 0:00:14]} Nd7 {[%emt 0:00:21]} 21. Na4 {[%emt 0:00:31]} Bc6 {[%emt 0:03:03]} 22. Nc3 {[%emt 0:08:44]} Rb8 {[%emt 0:06:48]} 23. Rcd1 {[%emt 0:05:32]} (23. Rb2 $14) 23... Rxb4 $15 {[%emt 0:06:35] Black is slightly better.} 24. Rxd6 {[%emt 0:00:27]} Rc8 {[%emt 0:00:06]} 25. R6d2 {[%emt 0:03:31]} Nc5 {[%emt 0:03:11]} 26. Ra2 {[%emt 0:04:24] Weighted Error Value: White=0.17 (very precise) /Black=0.06 (flawless) .  Mistake:       	White=1     	---        Inaccurate:     	White=1     	Black=1      OK:         	White=6     	Black=7      Best:        	---       	Black=2} 1/2-1/2

[Event "SixDays Budapest January IM-A 2025"]
[Site "Budapest"]
[Date "2025.01.28"]
[Round "4.5"]
[White "Kustar, Sandor"]
[Black "Fodor, Balazs"]
[Result "1/2-1/2"]
[Annotator "RC"]
[ECO "E65"]
[WhiteElo "2240"]
[BlackElo "2214"]
[PlyCount "50"]
[EventDate "2025.01.24"]
[EventType "tourn"]
[EventCountry "HUN"]
[SourceTitle "playchess.com"]
[Source "ChessBase"]
[SourceQuality "1"]
[TimeControl "5400+30"]

1. Nf3 {[%emt 0:09:02]} Nf6 {[%emt 0:00:09]} 2. g3 {[%emt 0:00:30]} g6 {[%emt 0:00:06]} 3. Bg2 {[%emt 0:00:55]} Bg7 {[%emt 0:00:07]} 4. c4 {[%emt 0:00:11]} O-O {[%emt 0:00:41]} 5. d4 {[%emt 0:00:15]} d6 {[%emt 0:00:07]} 6. O-O {[%emt 0:00:26]} c5 {[%emt 0:00:04]} 7. Nc3 {[%emt 0:05:45]} Nc6 {[%emt 0:00:58]} 8. dxc5 {[%emt 0:21:30]} dxc5 {[%emt 0:00:15]} 9. Be3 {[%emt 0:00:06]} Be6 {[%emt 0:00:11]} 10. Qa4 Qa5 {[%emt 0:15:30]} 11. Qb5 {[%emt 0:15:20]} a6 {[%emt 0:00:12]} 12. Qxc5 {[%emt 0:02:01]} Qxc5 {[%emt 0:05:49]} 13. Bxc5 {[%emt 0:00:04]} Nd7 {[%emt 0:00:05]} 14. Ba3 {[%emt 0:02:40]} Bxc4 {[%emt 0:13:40]} 15. Nd2 {[%emt 0:01:41]} Be6 {[%emt 0:09:28]} 16. Rfc1 {[%emt 0:01:15]} Rac8 {[%emt 0:05:01]} 17. Nd5 {[%emt 0:01:44]} Rfe8 {[%emt 0:13:14]} 18. Nb3 {[%emt 0:04:44]} Bf8 {[%emt 0:04:26]} 19. Rc3 {[%emt 0:10:09]} Bg7 {[%emt 0:04:44]} 20. Rc2 {[%emt 0:00:34]} Bf5 {[%emt 0:00:14]} 21. e4 {[%emt 0:00:29]} Be6 {[%emt 0:00:06]} 22. Rac1 {[%emt 0:00:33]} Nde5 {[%emt 0:12:03]} 23. Rc3 {[%emt 0:00:36]} Nd7 {[%emt 0:01:01]} 24. R3c2 {[%emt 0:00:38]} Nde5 {[%emt 0:00:05]} 25. Rc3 {[%emt 0:00:23]} Nd7 {[%emt 0:00:07]} 1/2-1/2